lending/lending_fUSD_20240621
["ID","MTS","AMOUNT","RATE_DAILY","PERIOD"]
[330056628,1718973103452,-925.28,0.00022739,4]
[330056629,1718973103461,-1034.2,0.00022739,4]
[330056630,1718973103470,-500.0,0.00022739,4]
[330056631,1718973103479,-500.0,0.00022739,4]
[330056632,1718973103488,-500.0,0.00022739,4]
[330056633,1718973103497,-500.0,0.00022739,4]
[330056634,1718973103506,-595.81,0.00022739,4]
[330056635,1718973103515,-500.0,0.00022739,4]
[330056636,1718973103523,-2355.82,0.00022739,4]
[330056637,1718973103533,-1395.55,0.00022739,4]
[330056638,1718973103542,-499.49597162,0.00022739,4]
[330056639,1718973103551,-590.06,0.00022739,4]
[330056640,1718973103560,-500.0,0.00022739,4]
[330056641,1718973103570,-1827.34,0.00022739,4]
[330056642,1718973103579,-995.75,0.00022739,4]
[330056643,1718973103588,-2131.11,0.00022739,4]
[330056644,1718973103597,-524.13,0.00022739,4]
[330056645,1718973103607,-249.57802707,0.00022739,4]
[330056646,1718973103616,-279.43862041,0.00022739,4]
[330056647,1718973103626,-500.0,0.00022739,4]
[330056648,1718973103635,-1410.72,0.00022739,4]
[330056649,1718973103643,-841.72,0.00022739,4]
[330056650,1718973103653,-500.0,0.00022739,4]
[330056651,1718973103665,-1568.4,0.00022739,4]
[330056652,1718973103674,-500.0,0.00022739,4]
[330056653,1718973103684,-2126.42,0.00022739,4]
[330056654,1718973103693,-687.81,0.00022739,4]
[330056655,1718973103702,-500.0,0.00022739,4]
[330056656,1718973103711,-1697.9,0.00022739,4]
[330056657,1718973103721,-500.0,0.00022739,4]
[330056658,1718973103730,-1357.63,0.00022739,4]
[330056659,1718973103740,-500.0,0.00022739,4]
[330056660,1718973103749,-500.0,0.00022739,4]
[330056661,1718973103759,-509.71545005,0.00022739,4]
[330056662,1718973103768,-500.0,0.00022739,4]
[330056663,1718973103777,-1145.64,0.00022739,4]
[330056664,1718973103787,-1852.52,0.00022739,4]
[330056665,1718973103797,-810.14,0.00022739,4]
[330056666,1718973103806,-565.32,0.00022739,4]
[330056667,1718973103816,-867.82,0.00022739,4]
[330056668,1718973103825,-747.65,0.00022739,4]
[330056669,1718973103834,-643.02,0.00022739,4]
[330056670,1718973103844,-500.0,0.00022739,4]
[330056671,1718973103853,-500.0,0.00022739,4]
[330056672,1718973103863,-866.29,0.00022739,4]
[330056673,1718973103872,-1491.63,0.00022739,4]
[330056674,1718973103881,-516.53,0.00022739,4]
[330056675,1718973103890,-500.0,0.00022739,4]
[330056676,1718973103900,-500.0,0.00022739,4]
[330056677,1718973103911,-500.0,0.00022739,4]
[330056678,1718973103921,-591.39,0.00022739,4]
[330056679,1718973103931,-500.0,0.00022739,4]
[330056680,1718973103940,-502.47,0.00022739,4]
[330056681,1718973103950,-500.0,0.00022739,4]
[330056682,1718973103959,-1994.89,0.00022739,4]
[330056683,1718973103968,-500.0,0.00022739,4]
[330056684,1718973103978,-500.0,0.00022739,4]
[330056685,1718973103987,-796.58,0.00022739,4]
[330056686,1718973103996,-880.62,0.00022739,4]
[330056687,1718973104006,-1123.56,0.00022739,4]
[330056688,1718973104015,-500.0,0.00022739,4]
[330056689,1718973104024,-500.0,0.00022739,4]
[330056690,1718973104034,-841.63,0.00022739,4]
[330056691,1718973104043,-500.0,0.00022739,4]
[330056692,1718973104053,-500.0,0.00022739,4]
[330056693,1718973104062,-500.0,0.00022739,4]
[330056694,1718973104072,-1240.11,0.00022739,4]
[330056695,1718973104082,-870.82,0.00022739,4]
[330056696,1718973104091,-618.2,0.00022739,4]
[330056697,1718973104101,-500.0,0.00022739,4]
[330056698,1718973104111,-500.0,0.00022739,4]
[330056699,1718973104121,-797.79,0.00022739,4]
[330056700,1718973104131,-1815.67,0.00022739,4]
[330056701,1718973104140,-683.32,0.00022739,4]
[330056702,1718973104150,-1381.31,0.00022739,4]
[330056703,1718973104161,-500.0,0.00022739,4]
[330056704,1718973104170,-648.58,0.00022739,4]
[330056705,1718973104179,-2161.49,0.00022739,4]
[330056706,1718973104189,-1949.39,0.00022739,4]
[330056707,1718973104198,-705.76,0.00022739,4]
[330056708,1718973104208,-500.0,0.00022739,4]
[330056709,1718973104217,-1168.66,0.00022739,4]
[330056710,1718973104226,-500.0,0.00022739,4]
[330056711,1718973104235,-590.30998841,0.00022739,4]
[330056712,1718973104245,-1026.24,0.00022739,4]
[330056713,1718973104255,-720.04,0.00022739,4]
[330056714,1718973104264,-505.72,0.00022739,4]
[330056715,1718973104274,-504.35882647,0.00022739,4]
[330056716,1718973104283,-500.0,0.00022739,4]
[330056717,1718973104292,-619.74,0.00022739,4]
[330056718,1718973104302,-500.0,0.00022739,4]
[330056719,1718973104311,-1609.15,0.00022739,4]
[330056720,1718973104320,-500.0,0.00022739,4]
[330056721,1718973104330,-500.0,0.00022739,4]
[330056722,1718973104339,-500.0,0.00022739,4]
[330056723,1718973104348,-500.0,0.00022739,4]
[330056724,1718973104357,-500.0,0.00022739,4]
[330056725,1718973104367,-500.0,0.00022739,4]
[330056726,1718973104379,-500.0,0.00022739,4]
[330056727,1718973104388,-604.99,0.00022739,4]
[330056728,1718973104398,-500.0,0.00022739,4]
[330056729,1718973104407,-500.0,0.00022739,4]
[330056730,1718973104419,-495.91395212,0.00022739,4]
[330056731,1718973104429,-776.31,0.00022739,4]
[330056732,1718973104438,-500.0,0.00022739,4]
[330056733,1718973104447,-500.0,0.00022739,4]
[330056734,1718973104464,-2603.11,0.00022739,4]
[330056735,1718973104474,-1618.51,0.00022739,4]
[330056736,1718973104483,-505.58,0.00022739,4]
[330056737,1718973104493,-500.0,0.00022739,4]
[330056738,1718973104504,-335.87580141,0.00022739,4]
[330056739,1718973104514,-1001.49,0.00022739,4]
[330056740,1718973104525,-658.98,0.00022739,4]
[330056741,1718973104535,-1038.54,0.00022739,4]
[330056742,1718973104546,-500.0,0.00022739,4]
[330056743,1718973104555,-1174.46,0.00022739,4]
[330056744,1718973104565,-1394.06,0.00022739,4]
[330056745,1718973104575,-2583.86,0.00022739,4]
[330056746,1718973104584,-500.0,0.00022739,4]
[330056747,1718973104593,-500.0,0.00022739,4]
[330056748,1718973104603,-616.9035416,0.00022739,4]
[330056749,1718973104612,-500.0,0.00022739,4]
[330056750,1718973104621,-500.0,0.00022739,4]
[330056751,1718973104630,-1819.66,0.00022739,4]
[330056752,1718973104639,-500.0,0.00022739,4]
[330056753,1718973104648,-1944.92,0.00022739,4]
[330056754,1718973104657,-1135.04,0.00022739,4]
[330056755,1718973104668,-571.23,0.00022739,4]
[330056756,1718973104677,-621.21,0.00022739,4]
[330056757,1718973104687,-639.83,0.00022739,4]
[330056758,1718973104696,-2512.54,0.00022739,4]
[330056759,1718973104705,-500.0,0.00022739,4]
[330056760,1718973104714,-500.0,0.00022739,4]
[330056761,1718973104723,-810.08,0.00022739,4]
[330056762,1718973104733,-653.01,0.00022739,4]
[330056763,1718973104742,-500.0,0.00022739,4]
[330056764,1718973104751,-1333.98,0.00022739,4]
[330056765,1718973104760,-500.0,0.00022739,4]
[330056766,1718973104769,-2474.29,0.00022739,4]
[330056767,1718973104778,-1604.69,0.00022739,4]
[330056768,1718973104788,-500.0,0.00022739,4]
[330056769,1718973104797,-500.0,0.00022739,4]
[330056770,1718973104806,-837.4,0.00022739,4]
[330056771,1718973104816,-500.0,0.00022739,4]
[330056772,1718973104825,-753.28,0.00022739,4]
[330056773,1718973104834,-500.0,0.00022739,2]
[330056774,1718973104844,-2346.85,0.00022739,4]
[330056775,1718973104854,-1718.3,0.00022739,4]
[330056776,1718973104863,-1957.2,0.00022739,4]
[330056777,1718973104873,-1525.14,0.00022739,4]
[330056778,1718973104882,-500.0,0.00022739,4]
[330056779,1718973104891,-528.55,0.00022739,4]
[330056780,1718973104901,-500.0,0.00022739,4]
[330056781,1718973104914,-1229.16,0.00022739,4]
[330056782,1718973104923,-1952.1,0.00022739,4]
[330056783,1718973104931,-500.0,0.00022739,4]
[330056784,1718973104940,-500.0,0.00022739,4]
[330056785,1718973104950,-500.0,0.00022739,4]
[330056786,1718973104959,-500.0,0.00022739,4]
[330056787,1718973104968,-2193.03,0.00022739,4]
[330056788,1718973104978,-706.78,0.00022739,4]
[330056789,1718973104987,-1848.21,0.00022739,4]
[330056790,1718973104997,-500.0,0.00022739,4]
[330056791,1718973105006,-624.16,0.00022739,4]
[330056792,1718973105016,-500.0,0.00022739,4]
[330056793,1718973105025,-562.5,0.00022739,4]
[330056794,1718973105035,-591.01,0.00022739,4]
[330056795,1718973105044,-500.0,0.00022739,4]
[330056796,1718973105053,-500.0,0.00022739,4]
[330056797,1718973105063,-500.0,0.00022739,4]
[330056798,1718973105073,-500.0,0.00022739,4]
[330056799,1718973105082,-500.0,0.00022739,4]
[330056800,1718973105091,-369.47756275,0.00022739,4]
[330056801,1718973105100,-500.0,0.00022739,4]
[330056802,1718973105111,-500.0,0.00022739,4]
[330056803,1718973105121,-2947.73,0.00022739,4]
[330056804,1718973105131,-531.69,0.00022739,4]
[330056805,1718973105140,-1350.34,0.00022739,4]
[330056806,1718973105150,-2331.11,0.00022739,4]
[330056807,1718973105161,-1496.38,0.00022739,4]
[330056808,1718973105170,-1623.88,0.00022739,4]
[330056809,1718973105180,-500.0,0.00022739,4]
[330056810,1718973105189,-500.0,0.00022739,4]
[330056811,1718973105200,-1163.89,0.00022739,4]
[330056812,1718973105210,-667.41,0.00022739,4]
[330056813,1718973105220,-500.0,0.00022739,4]
[330056814,1718973105230,-1404.16,0.00022739,4]
[330056815,1718973105241,-628.16,0.00022739,4]
[330056816,1718973105252,-805.07,0.00022739,4]
[330056817,1718973105261,-765.74,0.00022739,4]
[330056818,1718973105271,-191.79218714,0.00022739,4]
[330056819,1718973105280,-1917.4,0.00022739,4]
[330056820,1718973105292,-502.84815326,0.00022739,4]
[330056821,1718973105302,-500.0,0.00022739,4]
[330056822,1718973105311,-500.0,0.00022739,4]
[330056823,1718973105321,-500.0,0.00022739,4]
[330056824,1718973105332,-500.0,0.00022739,4]
[330056825,1718973105341,-500.0,0.00022739,4]
[330056826,1718973105351,-8457.45,0.00022739,4]
[330056827,1718973105362,-500.0,0.00022739,4]
[330056828,1718973105373,-500.0,0.00022739,4]
[330056829,1718973105386,-1736.26,0.00022739,4]
[330056830,1718973105396,-500.0,0.00022739,4]
[330056831,1718973105405,-500.0,0.00022739,4]
[330056832,1718973105417,-500.0,0.00022739,4]
[330056833,1718973105426,-447.63536477,0.00022739,4]
[330056834,1718973105435,-500.0,0.00022739,4]
[330056835,1718973105443,-1673.18,0.00022739,4]
[330056836,1718973105454,-500.0,0.00022739,4]
[330056837,1718973105465,-638.41,0.00022739,4]
[330056838,1718973105475,-1599.12,0.00022739,4]
[330056839,1718973105484,-500.0,0.00022739,4]
[330056840,1718973105494,-945.51,0.00022739,4]
[330056841,1718973105503,-500.0,0.00022739,4]
[330056842,1718973105513,-500.0,0.00022739,4]
[330056843,1718973105524,-2988.12,0.00022739,4]
[330056844,1718973105533,-500.0,0.00022739,4]
[330056845,1718973105542,-500.0,0.00022739,32]
[330056846,1718973105552,-500.0,0.00022739,4]
[330056847,1718973105562,-917.73,0.00022739,4]
[330056848,1718973105571,-500.0,0.00022739,4]
[330056849,1718973105581,-1026.54,0.00022739,4]
[330056850,1718973105590,-1827.66,0.00022739,4]
[330056851,1718973105600,-530.22,0.00022739,4]
[330056852,1718973105610,-2155.52,0.00022739,4]
[330056853,1718973105619,-500.0,0.00022739,4]
[330056854,1718973105629,-2002.2,0.00022739,4]
[330056855,1718973105639,-423.36061545,0.00022739,4]
[330056856,1718973105649,-2722.49,0.00022739,4]
[330056857,1718973105660,-1420.99,0.00022739,4]
[330056858,1718973105670,-500.0,0.00022739,4]
[330056859,1718973105679,-500.0,0.00022739,4]
[330056860,1718973105691,-500.0,0.00022739,4]
[330056861,1718973105700,-500.0,0.00022739,4]
[330056862,1718973105710,-1391.4,0.00022739,4]
[330056863,1718973105720,-1489.13,0.00022739,4]
[330056864,1718973105729,-500.0,0.00022739,4]
[330056865,1718973105738,-1702.47,0.00022739,4]
[330056866,1718973105747,-1134.68,0.00022739,4]
[330056867,1718973105756,-500.0,0.00022739,4]
[330056868,1718973105766,-787.22,0.00022739,4]
[330056869,1718973105776,-500.0,0.00022739,4]
[330056870,1718973105786,-669.57,0.00022739,4]
[330056871,1718973105795,-500.0,0.00022739,4]
[330056872,1718973105804,-500.0,0.00022739,4]
[330056873,1718973105814,-500.0,0.00022739,4]
[330056874,1718973105823,-500.0,0.00022739,4]
[330056875,1718973105832,-500.0,0.00022739,4]
[330056876,1718973105842,-569.85,0.00022739,4]
[330056877,1718973105851,-500.0,0.00022739,4]
[330056878,1718973105861,-1449.14,0.00022739,4]
[330056879,1718973105871,-708.36,0.00022739,4]
[330056880,1718973105880,-16282.7,0.00022739,4]
[330056881,1718973105890,-500.0,0.00022739,4]
[330056882,1718973105899,-1116.91,0.00022739,4]
[330056883,1718973105911,-500.0,0.00022739,4]
[330056884,1718973105921,-1125.69,0.00022739,4]
[330056885,1718973105930,-604.75,0.00022739,4]
[330056886,1718973105940,-507.63130767,0.00022739,4]
[330056887,1718973105949,-500.0,0.00022739,4]
[330056888,1718973105958,-500.0,0.00022739,4]
[330056889,1718973105968,-1462.93,0.00022739,4]
[330056890,1718973105977,-500.0,0.00022739,4]
[330056891,1718973105988,-1667.43,0.00022739,4]
[330056892,1718973105997,-860.75,0.00022739,4]
[330056893,1718973106006,-500.0,0.00022739,4]
[330056894,1718973106016,-662.62,0.00022739,4]
[330056895,1718973106025,-5139.2,0.00022739,4]
[330056896,1718973106035,-500.0,0.00022739,4]
[330056897,1718973106045,-1147.2,0.00022739,4]
[330056898,1718973106055,-705.64,0.00022739,4]
[330056899,1718973106064,-502.16,0.00022739,4]
[330056900,1718973106074,-1270.64,0.00022739,4]
[330056901,1718973106084,-500.0,0.00022739,4]
[330056902,1718973106094,-500.0,0.00022739,4]
[330056903,1718973106103,-958.73,0.00022739,4]
[330056904,1718973106113,-500.0,0.00022739,4]
[330056905,1718973106122,-1047.69,0.00022739,4]
[330056906,1718973106132,-500.0,0.00022739,4]
[330056907,1718973106141,-618.47,0.00022739,4]
[330056908,1718973106151,-406.52999263,0.00022739,4]
[330056909,1718973106162,-1764.94,0.00022739,4]
[330056910,1718973106172,-1043.04,0.00022739,4]
[330056911,1718973106181,-500.0,0.00022739,4]
[330056912,1718973106191,-500.0,0.00022739,4]
[330056913,1718973106200,-543.07,0.00022739,4]
[330056914,1718973106210,-58081.73,0.00022739,4]
[330056915,1718973106219,-2774.27,0.00022739,4]
[330056916,1718973106229,-2075.77,0.00022739,4]
[330056917,1718973106238,-7892.24,0.00022739,4]
[330056918,1718973106247,-500.0,0.00022739,4]
[330056919,1718973106257,-926.77,0.00022739,4]
[330056920,1718973106267,-816.9,0.00022739,4]
[330056921,1718973106277,-500.0,0.00022739,4]
[330056922,1718973106287,-500.0,0.00022739,4]
[330056923,1718973106296,-2799.73,0.00022739,4]
[330056924,1718973106306,-521.56,0.00022739,4]
[330056925,1718973106315,-584.17,0.00022739,4]
[330056926,1718973106326,-500.0,0.00022739,4]
[330056927,1718973106336,-920.17,0.00022739,4]
[330056928,1718973106345,-500.0,0.00022739,4]
[330056929,1718973106355,-500.0,0.00022739,4]
[330056930,1718973106368,-2930.52,0.00022739,4]
[330056931,1718973106381,-500.0,0.00022739,4]
[330056932,1718973106390,-1560.84,0.00022739,4]
[330056933,1718973106400,-500.0,0.00022739,4]
[330056934,1718973106413,-2000.0,0.00022739,4]
[330056935,1718973106422,-2818.4,0.00022739,4]
[330056936,1718973106432,-511.56,0.00022739,4]
[330056937,1718973106441,-960.31,0.00022739,4]
[330056938,1718973106451,-1134.95,0.00022739,4]
[330056939,1718973106460,-1529.13,0.00022739,4]
[330056940,1718973106470,-500.0,0.00022739,4]
[330056941,1718973106480,-585.4,0.00022739,4]
[330056942,1718973106595,-500.0,0.00022739,4]
[330056943,1718973106607,-500.0,0.00022739,4]
[330056944,1718973106616,-2714.65,0.00022739,4]
[330056945,1718973106626,-871.46,0.00022739,4]
[330056946,1718973106637,-1479.55,0.00022739,4]
[330056947,1718973106646,-562.97,0.00022739,4]
[330056948,1718973106656,-738.96,0.00022739,4]
[330056949,1718973106667,-500.0,0.00022739,4]
[330056950,1718973106677,-500.0,0.00022739,4]
[330056951,1718973106686,-1559.0,0.00022739,4]
[330056952,1718973106695,-604.2,0.00022739,4]
[330056953,1718973106705,-678.48,0.00022739,4]
[330056954,1718973106714,-697.86,0.00022739,4]
[330056955,1718973106724,-2873.18,0.00022739,4]
[330056956,1718973106733,-500.0,0.00022739,4]
[330056957,1718973106744,-500.0,0.00022739,4]
[330056958,1718973106753,-3367.31,0.00022739,4]
[330056959,1718973106765,-854.85,0.00022739,7]
[330056960,1718973106774,-500.0,0.00022739,4]
[330056961,1718973106785,-2910.63,0.00022739,4]
[330056962,1718973106795,-532.39,0.00022739,4]
[330056963,1718973106806,-500.0,0.00022739,4]
[330056964,1718973106816,-751.6,0.00022739,4]
[330056965,1718973106828,-500.0,0.00022739,4]
[330056966,1718973106838,-629.02,0.00022739,4]
[330056967,1718973106849,-7673.63,0.00022739,4]
[330056968,1718973106860,-1619.58,0.00022739,4]
[330056969,1718973106870,-2420.59,0.00022739,4]
[330056970,1718973106880,-500.0,0.00022739,4]
[330056971,1718973106890,-2089.84,0.00022739,4]
[330056972,1718973106899,-4010.87,0.00022739,4]
[330056973,1718973106912,-916.04,0.00022739,4]
[330056974,1718973106921,-2913.75,0.00022739,4]
[330056975,1718973106931,-1112.73,0.00022739,4]
[330056976,1718973106941,-500.0,0.00022739,4]
[330056977,1718973106950,-625.29,0.00022739,4]
[330056978,1718973106959,-500.0,0.00022739,4]
[330056979,1718973106969,-500.0,0.00022739,4]
[330056980,1718973106979,-500.0,0.00022739,4]
[330056981,1718973106989,-1793.24,0.00022739,4]
[330056982,1718973106999,-16994.39,0.00022739,4]
[330056983,1718973107009,-1945.66,0.00022739,4]
[330056984,1718973107019,-8296.21,0.00022739,4]
[330056985,1718973107028,-476.98871653,0.00022739,4]
[330056986,1718973107038,-806.03,0.00022739,4]
[330056987,1718973107049,-1811.43,0.00022739,4]
[330056988,1718973107058,-500.0,0.00022739,4]
[330056989,1718973107068,-500.0,0.00022739,4]
[330056990,1718973107078,-500.0,0.00022739,4]
[330056991,1718973107087,-500.0,0.00022739,4]
[330056992,1718973107097,-3031.85,0.00022739,4]
[330056993,1718973107106,-1346.46,0.00022739,4]
[330056994,1718973107116,-500.0,0.00022739,4]
[330056995,1718973107125,-1356.56,0.00022739,4]
[330056996,1718973107134,-8619.34,0.00022739,4]
[330056997,1718973107144,-982.4,0.00022739,4]
[330056998,1718973107154,-7923.23,0.00022739,4]
[330056999,1718973107166,-500.0,0.00022739,4]
[330057000,1718973107176,-1282.01,0.00022739,4]
[330057001,1718973107186,-500.0,0.00022739,4]
[330057002,1718973107196,-500.0,0.00022739,4]
[330057003,1718973107205,-500.0,0.00022739,4]
[330057004,1718973107215,-2194.68,0.00022739,4]
[330057005,1718973107224,-1065.22,0.00022739,4]
[330057006,1718973107233,-500.0,0.00022739,4]
[330057007,1718973107243,-500.0,0.00022739,4]
[330057008,1718973107253,-2605.01,0.00022739,4]
[330057009,1718973107263,-1194.85,0.00022739,4]
[330057010,1718973107272,-637.84,0.00022739,4]
[330057011,1718973107283,-500.0,0.00022739,4]
[330057012,1718973107292,-607.49,0.00022739,4]
[330057013,1718973107302,-2158.75,0.00022739,4]
[330057014,1718973107312,-4663.66,0.00022739,4]
[330057015,1718973107321,-513.19,0.00022739,4]
[330057016,1718973107332,-500.0,0.00022739,4]
[330057017,1718973107342,-6655.78,0.00022739,4]
[330057018,1718973107353,-500.0,0.00022739,4]
[330057019,1718973107363,-1086.11,0.00022739,4]
[330057020,1718973107378,-500.0,0.00022739,4]
[330057021,1718973107387,-3341.03,0.00022739,4]
[330057022,1718973107396,-500.0,0.00022739,4]
[330057023,1718973107406,-565.88,0.00022739,4]
[330057024,1718973107418,-2666.03,0.00022739,4]
[330057025,1718973107427,-500.0,0.00022739,4]
[330057026,1718973107437,-740.45,0.00022739,4]
[330057027,1718973107446,-1632.6,0.00022739,4]
[330057028,1718973107458,-597.91824534,0.00022739,4]
[330057029,1718973107468,-824.01,0.00022739,4]
[330057030,1718973107478,-500.0,0.00022739,4]
[330057031,1718973107488,-3484.81,0.00022739,4]
[330057032,1718973107498,-5214.93,0.00022739,4]
[330057033,1718973107507,-2247.85,0.00022739,4]
[330057034,1718973107517,-3738.85,0.00022739,4]
[330057035,1718973107526,-1781.61,0.00022739,4]
[330057036,1718973107536,-562.49,0.00022739,4]
[330057037,1718973107545,-1040.27,0.00022739,4]
[330057038,1718973107555,-500.0,0.00022739,4]
[330057039,1718973107564,-500.0,0.00022739,4]
[330057040,1718973107574,-681.24,0.00022739,4]
[330057041,1718973107583,-500.0,0.00022739,4]
[330057042,1718973107593,-1331.42,0.00022739,4]
[330057043,1718973107602,-4930.88,0.00022739,4]
[330057044,1718973107612,-645.52903122,0.00022739,4]
[330057045,1718973107621,-1991.63,0.00022739,4]
[330057046,1718973107631,-2060.73,0.00022739,4]
[330057047,1718973107640,-22511.49,0.00022739,4]
[330057048,1718973107650,-1027.8,0.00022739,4]
[330057049,1718973107661,-682.79,0.00022739,4]
[330057050,1718973107671,-500.0,0.00022739,4]
[330057051,1718973107680,-406.75102328,0.00022739,4]
[330057052,1718973107690,-500.0,0.00022739,4]
[330057053,1718973107699,-523.91,0.00022739,4]
[330057054,1718973107708,-500.0,0.00022739,4]
[330057055,1718973107718,-963.12,0.00022739,4]
[330057056,1718973107728,-500.0,0.00022739,4]
[330057057,1718973107738,-573.72,0.00022739,4]
[330057058,1718973107748,-500.0,0.00022739,4]
[330057059,1718973107758,-3318.44,0.00022739,4]
[330057060,1718973107767,-1235.03,0.00022739,4]
[330057061,1718973107776,-1728.01,0.00022739,4]
[330057062,1718973107786,-5655.85,0.00022739,4]
[330057063,1718973107795,-500.0,0.00022739,4]
[330057064,1718973107804,-500.0,0.00022739,4]
[330057065,1718973107814,-500.0,0.00022739,4]
[330057066,1718973107823,-500.0,0.00022739,4]
[330057067,1718973107833,-1315.22,0.00022739,4]
[330057068,1718973107842,-9208.26,0.00022739,4]
[330057069,1718973107852,-3110.37,0.00022739,4]
[330057070,1718973107861,-987.55,0.00022739,4]
[330057071,1718973107871,-940.25,0.00022739,4]
[330057072,1718973107882,-19451.71,0.00022739,4]
[330057073,1718973107892,-2261.31,0.00022739,4]
[330057074,1718973107902,-7126.8,0.00022739,4]
[330057075,1718973107912,-321.84672781,0.00022739,4]
[330057076,1718973107922,-500.0,0.00022739,4]
[330057077,1718973107932,-500.0,0.00022739,4]
[330057078,1718973107943,-2055.98,0.00022739,4]
[330057079,1718973107955,-500.0,0.00022739,4]
[330057080,1718973107965,-611.07,0.00022739,4]
[330057081,1718973107975,-500.0,0.00022739,4]
[330057082,1718973107986,-500.0,0.00022739,4]
[330057083,1718973107997,-763.62,0.00022739,4]
[330057084,1718973108008,-4795.5,0.00022739,4]
[330057085,1718973108019,-2328.69,0.00022739,4]
[330057086,1718973108029,-34751.57,0.00022739,4]
[330057087,1718973108039,-3330.89,0.00022739,4]
[330057088,1718973108049,-500.0,0.00022739,4]
[330057089,1718973108059,-500.0,0.00022739,4]
[330057090,1718973108069,-2342.9,0.00022739,4]
[330057091,1718973108079,-577.97,0.00022739,4]
[330057092,1718973108089,-500.0,0.00022739,4]
[330057093,1718973108099,-657.46,0.00022739,4]
[330057094,1718973108108,-500.0,0.00022739,4]
[330057095,1718973108118,-1405.08,0.00022739,4]
[330057096,1718973108129,-1000.44,0.00022739,4]
[330057097,1718973108139,-2526.55,0.00022739,4]
[330057098,1718973108149,-849.46,0.00022739,4]
[330057099,1718973108159,-1109.18,0.00022739,4]
[330057100,1718973108169,-9583.17,0.00022739,4]
[330057101,1718973108179,-500.0,0.00022739,4]
[330057102,1718973108188,-895.87,0.00022739,4]
[330057103,1718973108198,-2254.65,0.00022739,4]
[330057104,1718973108207,-824.6,0.00022739,4]
[330057105,1718973108215,-500.0,0.00022739,4]
[330057106,1718973108224,-760.9,0.00022739,4]
[330057107,1718973108234,-633.03,0.00022739,4]
[330057108,1718973108244,-500.0,0.00022739,4]
[330057109,1718973108254,-1615.67,0.00022739,4]
[330057110,1718973108263,-1368.32,0.00022739,4]
[330057111,1718973108273,-634.62776111,0.00022739,4]
[330057112,1718973108283,-2998.26,0.00022739,4]
[330057113,1718973108293,-504.30173861,0.00022739,4]
[330057114,1718973108303,-736.81,0.00022739,4]
[330057115,1718973108313,-1193.6,0.00022739,4]
[330057116,1718973108612,-500.0,0.00022739,4]
[330057117,1718973108630,-500.0,0.00022739,4]
[330057118,1718973108639,-500.0,0.00022739,4]
[330057119,1718973108649,-13625.03,0.00022739,4]
[330057120,1718973108658,-500.0,0.00022739,4]
[330057121,1718973108672,-763.98,0.00022739,4]
[330057122,1718973108681,-1391.92,0.00022739,4]
[330057123,1718973108690,-500.0,0.00022739,4]
[330057124,1718973108700,-1399.65,0.00022739,4]
[330057125,1718973108709,-828.58,0.00022739,4]
[330057126,1718973108718,-859.81,0.00022739,4]
[330057127,1718973108727,-2032.93,0.00022739,4]